Cogmind - Beta 16.1 @@@ ROGUE MODE // 2026.03.06 @ 03:02:13 Player: Moleculor Result: Destroyed by G-47 Trooper with Particle Gun Performance ------------- Evolutions (2) 1000 Regions Visited (7) 1400 Robots Destroyed (99) 495 Value Destroyed (3798) 3798 Prototype IDs (33) 660 Alien Tech Used (0) 0 Bonus (1422) 1422 TOTAL SCORE: 8775 Bonus ------- High Alert Combat Kills 260 Follower Combat Kills 162 Entered Garrisons 200 Used RIF Installer 500 Aligned with FarCom 300 Cogmind --------- Core Integrity 0/550 Matter 207/300 Energy 140/140 System Corruption 3% Temperature Cool (15) Movement Walking (120) Location -8/Materials Parts ------- > --- POWER (1) -------- Light Deuterium Engine > --- PROPULSION (4) --- Aluminum Leg Aluminum Leg Aluminum Leg Aluminum Leg > --- UTILITY (4) ------ Large Storage Unit Improved Targeting Computer Advanced Targeting Computer > --- WEAPON (2) ------- Gatling Laser (fused) Mini Grenade Launcher > --- INVENTORY (15) --- Improved Sensor Array Hardened Light Armor Plating Shock Rifle Heavy EM Shotgun Pulse Rifle Advanced Beam Rifle Gatling Laser Gatling Laser Gatling Laser Heavy Assault Rifle Gauss Rifle Heavy Assault Cannon Remote Datajack Peak State ------------ > --- POWER ------------ Light Nuclear Core > --- PROPULSION ------- Armored Treads Armored Treads Improved Aluminum Leg Carbon-fiber Leg > --- UTILITY ---------- Large Storage Unit Improved Targeting Computer Advanced Targeting Computer Hacking Suite > --- WEAPON ----------- Gatling Laser Gauss Rifle > --- INVENTORY -------- Light Deuterium Engine Improved VTOL Module Improved Sensor Array Hardened Light Armor Plating Shock Rifle Heavy EM Shotgun Pulse Rifle Advanced Beam Rifle Gatling Laser Gatling Laser Gatling Laser Heavy Assault Rifle Gauss Rifle Mini Grenade Launcher Remote Datajack [Rating: 36] Favorites ----------- Power Ion Engine Engine Ion Engine Power Core Light Nuclear Core Propulsion Aluminum Leg Treads Armored Treads Leg Aluminum Leg Flight Unit Flight Unit Utility Large Storage Unit Device Seismic Detector Storage Large Storage Unit Processor Terrain Scan Processor Hackware Hacking Suite Protection Hardened Medium Armor Plating Weapon Particle Gun Energy Gun Particle Gun Energy Cannon Beam Cannon Ballistic Gun Gauss Rifle Launcher Mini Grenade Launcher Special Weapon Remote Datajack Special Melee Weapon Datajack Build | -11 -10 -10 -10 -9 -8 -8 -8 ------- Run | Yrd Mat Min Exi Min Mat Gar Mat Slots Evolved 4 | . . . . . 4 . . Power . | . . . . . . . . Propulsion 2 | . . . . . 2 . . Utility 2 | . . . . . 2 . . Weapon . | . . . . . . . . Parts Attached 85 | 5 17 1 . 4 43 7 8 Power 13 | 1 1 . . . 10 . 1 Engine 8 | 1 1 . . . 5 . 1 Core 5 | . . . . . 5 . . Reactor . | . . . . . . . . Propulsion 36 | 2 4 1 . 2 17 5 5 Treads 3 | . . . . . 3 . . Leg 29 | 2 4 1 . 2 14 1 5 Wheel . | . . . . . . . . Hover . | . . . . . . . . Flight 4 | . . . . . . 4 . Utility 14 | . 6 . . . 8 . . Device 4 | . 2 . . . 2 . . Storage 2 | . 2 . . . . . . Processor 5 | . 2 . . . 3 . . Hackware 1 | . . . . . 1 . . Protection 2 | . . . . . 2 . . Artifact . | . . . . . . . . Weapon 22 | 2 6 . . 2 8 2 2 Energy Gun 11 | 1 4 . . 2 3 1 . Energy Cannon 1 | . 1 . . . . . . Ballistic Gun 6 | 1 . . . . 3 1 1 Ballistic Cannon . | . . . . . . . . Launcher 1 | . . . . . 1 . . Special Weapon 2 | . . . . . 1 . 1 Impact Weapon . | . . . . . . . . Slashing Weapon . | . . . . . . . . Piercing Weapon . | . . . . . . . . Special Melee Weapon 1 | . 1 . . . . . . Unidentified Prototypes 1 | . . . . . . 1 . Parts Lost 18 | . 1 . . . 12 3 2 Power 5 | . . . . . 4 . 1 Propulsion 7 | . . . . . 5 2 . Utility 3 | . . . . . 2 . 1 Weapon 3 | . 1 . . . 1 1 . Highest Loss Streak 3 | . 1 . . . 3 2 2 To Critical Strikes . | . . . . . . . . Average Backups 10 | 2 5 6 6 9 14 14 13 Power . | . 1 1 1 1 . 1 . Propulsion . | . . . . 1 1 . . Utility 3 | . 2 3 3 4 3 2 2 Weapon 4 | . 1 1 2 3 7 9 9 Tool/Special . | . . . . . . . . Unused Backups 18 | . 2 . 1 . 8 . 7 Power 2 | . . . . . 2 . . Propulsion 1 | . . . 1 . . . . Utility 6 | . 1 . . . 4 . 1 Weapon 9 | . 1 . . . 2 . 6 Tool/Special . | . . . . . . . . Average Slot Usage (%) 97 | . 95 100 100 100 95 94 98 Engine 9 | . 14 14 14 14 5 . . Core 1 | . . . . . 2 9 8 Treads 1 | . . . . . 2 13 . Leg 27 | . 27 28 28 28 30 10 27 Device 3 | . 8 . . . 5 . . Storage 10 | . 7 14 14 14 9 9 9 Processor 13 | . 8 14 14 14 14 18 18 Hackware 1 | . . . . . . 9 8 Protection 1 | . . . . . 5 . . Energy Gun 11 | . 14 14 14 14 7 11 9 Ballistic Gun 4 | . 7 . . . 8 5 1 Special Melee Weapon 5 | . 1 14 14 14 . . . Peak Build Rating 36 | 5 9 9 13 11 35 36 29 Average Rating 17 | 3 7 9 9 10 27 31 27 On Entrance 13 | . 5 9 9 10 10 35 29 Avg Prop Armor Cover (%) 9 | . . . . . 8 12 . Naked Turns . | . . . . . . . . Heaviest Build 48 | 9 31 29 29 29 48 33 33 Greatest Support 50 | 20 20 20 20 20 50 40 40 Greatest Overweight (x) 9 | . 9 1 1 1 1 3 2 Average Overweight (x) . | . . 1 1 1 . . . Largest Inventory Capacity 15 | 5 15 15 15 15 15 15 15 Average Capacity 14 | 5 9 15 15 15 15 15 15 Most Carried 15 | 5 8 7 10 11 15 15 15 Average Carried 10 | 2 5 6 6 9 14 14 14 Final Capacity 15 | 5 15 15 15 15 15 15 15 Final Carried 15 | 3 5 6 7 10 15 13 14 Class Distribution -------------------- 86% | Scavenger-Mutant 13% | Mutant Dominant Class ---------------- Mutant | -10/Materials Scavenger-Mutant | -10/Mines Scavenger-Mutant | -10/Exiles Scavenger-Mutant | -9/Mines Scavenger-Mutant | -8/Materials Scavenger-Mutant | -8/Garrison Scavenger-Mutant | -8/Materials Resources | -11 -10 -10 -10 -9 -8 -8 -8 ----------- Run | Yrd Mat Min Exi Min Mat Gar Mat Matter Collected 2443 | 193 412 30 . 74 1455 233 46 Remotely . | . . . . . . . . Salvage Created 3285 | . 452 87 . 32 2149 451 114 Parts 183 | . 25 5 . 3 108 37 5 Haulers Intercepted 2 | . . . . . 2 . . Recyclers Shooed . | . . . . . . . . Parts Field Recycled . | . . . . . . . . Retrieved Matter . | . . . . . . . . Parts Self-Destructed . | . . . . . . . . Prevented . | . . . . . . . . Parts Restored . | . . . . . . . . Kills | -11 -10 -10 -10 -9 -8 -8 -8 ------- Run | Yrd Mat Min Exi Min Mat Gar Mat Combat Hostiles Destroyed 81 | . 12 2 . 2 44 19 2 Guns 66 | . 10 2 . 2 37 13 2 Cannons 2 | . 2 . . . . . . AOE 12 | . . . . . 7 5 . Classes Destroyed 14 | . 3 . . . 10 1 . Worker 5 | . . . . . 5 . . Builder 1 | . . . . . 1 . . Tunneler 1 | . . . . . 1 . . Hauler 2 | . . . . . 2 . . Operator 2 | . . . . . 2 . . Watcher 7 | . 1 . . . 5 . 1 Swarmer 20 | . 3 . . 2 4 11 . Cutter 2 | . . . . . 2 . . Grunt 40 | . 9 2 . . 23 4 2 Brawler 2 | . . . . . 1 1 . Duelist 1 | . . . . . . 1 . Sentry 10 | . . . . . 9 1 . Hunter 5 | . . . . . 4 1 . Heavy 1 | . . . . . 1 . . Best Kill Streak 6 | . 3 2 . 1 6 6 2 Combat Bots Only 6 | . 3 2 . 1 4 6 1 Max Kills in Single Turn 3 | . 1 1 . 1 3 3 1 Gunslinging . | . . . . . . . . Exploded 3 | . . . . . 2 3 . Melee . | . . . . . . . . Uniques/NPCs Destroyed . | . . . . . . . . Combat | -11 -10 -10 -10 -9 -8 -8 -8 -------- Run | Yrd Mat Min Exi Min Mat Gar Mat Hostile Shots Fired 464 | . 50 9 . 23 267 92 23 Missed 149 | . 17 3 . 4 92 28 5 Hits 315 | . 33 6 . 19 175 64 18 Melee 11 | . . . . . 9 2 . Projectile 304 | . 33 6 . 19 166 62 18 AOE 2 | . . . . . 2 . . Critical Strikes 11 | . . . . . 10 1 . Damage Taken 4196 | . 377 80 . 186 2522 737 294 Core 660 | . 86 . . 23 360 146 45 Absorbed by Shields 145 | . . . . . 136 9 . Regen/Repaired (Parts) 122 | . 18 . . . 104 . . Core Remaining (%) 78 | 100 . . . 56 . . . Volleys Fired 311 | . 48 8 . 15 180 48 12 Largest 2 | . 2 1 . 1 2 2 2 Hottest 160 | . 125 65 . 65 108 160 108 Shots Fired 543 | . 83 9 . 16 332 84 19 Gun 498 | . 67 9 . 16 312 80 14 Cannon 16 | . 16 . . . . . . Launcher 22 | . . . . . 18 4 . Special 7 | . . . . . 2 . 5 Kinetic 219 | . 21 . . . 171 20 7 Thermal 288 | . 53 9 . 16 143 60 7 Explosive 22 | . . . . . 18 4 . Electromagnetic 9 | . 9 . . . . . . Robot Hit Streak 17 | . 14 4 . 2 15 17 8 Robot Miss Streak 5 | . 3 1 . 3 5 4 4 Penetration Max 1 | . . . . . 1 1 . Secondary Targets 5 | . . . . . 1 4 . Max Gunslinging Chain 1 | . . . . . 1 1 . Shots Hit Robots 338 | . 49 15 . 9 212 38 15 Core Hits 175 | . 20 4 . 2 110 30 9 Critical Kills 3 | . . . . . 3 . . Critical Parts Destroyed 2 | . . . . . 2 . . Critical Strikes 12 | . 1 . . . 11 . . Burn 7 | . 1 . . . 6 . . Destroy 5 | . . . . . 5 . . Melee Attacks 11 | . . 9 . 2 . . . Impact . | . . . . . . . . Slashing . | . . . . . . . . Piercing . | . . . . . . . . Sneak Attacks 8 | . . 7 . 1 . . . Combat Hostiles . | . . . . . . . . Follow-up Attacks . | . . . . . . . . Damage Inflicted 7267 | . 666 81 . 118 5082 1123 197 Guns 5519 | . 557 81 . 118 3765 801 197 Cannons 105 | . 105 . . . . . . Explosions 1639 | . . . . . 1317 322 . Melee . | . . . . . . . . Ramming 4 | . 4 . . . . . . Kinetic 2457 | . 226 . . . 1968 187 76 Thermal 3132 | . 401 81 . 118 1797 614 121 Explosive 1639 | . . . . . 1317 322 . Electromagnetic 35 | . 35 . . . . . . Impact . | . . . . . . . . Slashing . | . . . . . . . . Piercing . | . . . . . . . . Highest Corruption 3 | . 1 1 1 1 3 3 3 Average Corruption 1 | . 1 1 1 1 2 3 3 Corruption Purged . | . . . . . . . . Corruption Blocked . | . . . . . . . . Effects 96 | . 9 15 8 6 44 12 2 Message Errors 22 | . 2 3 2 . 11 3 1 Matter Fused 25 | . 2 5 2 1 10 5 . Heat Flow Errors 8 | . 2 3 . . 2 . 1 Energy Discharges 11 | . 2 2 2 1 2 2 . Parts Fused 4 | . . 1 . 1 2 . . Data Loss (minor) 9 | . 1 . . 2 6 . . Data Loss (major) 3 | . . . . . 3 . . Misfires 8 | . . 1 . 1 5 1 . Alerts 4 | . . . 2 . 2 . . Weapon Failures 2 | . . . . . 1 1 . Overload Shots . | . . . . . . . . Overflow Damage 49 | . . . . . 49 . . Projectiles . | . . . . . . . . Explosions 49 | . . . . . 49 . . Melee . | . . . . . . . . Knockbacks . | . . . . . . . . Impact . | . . . . . . . . Kinetic . | . . . . . . . . Secondary . | . . . . . . . . Self-Inflicted Damage 22 | . . . . . 22 . . Shots 1 | . . . . . 1 . . Rammed . | . . . . . . . . Targets Rammed 1 | . 1 . . . . . . Kicked 1 | . 1 . . . . . . Crushed . | . . . . . . . . Highest Temperature 423 | . 327 277 . 120 359 423 220 Average Temperature 79 | . 80 105 . 56 70 98 77 Received Heat Transfer 1494 | . 147 45 . 39 999 102 162 Effects 7 | . 1 . . . 2 4 . Energy Bleed 3 | . 1 . . . 2 . . Interference 3 | . . . . . . 3 . Short Circuit 1 | . . . . . . 1 . Siege Activations . | . . . . . . . . Martial Activations . | . . . . . . . . Shielding Activations . | . . . . . . . . Robots Disrupted . | . . . . . . . . Combat Hostiles . | . . . . . . . . Robots Corrupted . | . . . . . . . . Combat Hostiles . | . . . . . . . . Parts Fried . | . . . . . . . . Impact Corruptions . | . . . . . . . . Robots Melted 1 | . . . . . . 1 . Combat Hostiles 1 | . . . . . . 1 . Parts Melted 11 | . . . . 2 4 5 . Heat Transferred 7261 | . 991 185 . 296 4089 1425 275 Parts Sabotaged . | . . . . . . . . Parts Stolen . | . . . . . . . . Parts Stripped . | . . . . . . . . Power Chain Reactions . | . . . . . . . . Alert | -11 -10 -10 -10 -9 -8 -8 -8 ------- Run | Yrd Mat Min Exi Min Mat Gar Mat Maximum Alert Level 3 | . . . . . 2 3 2 Low Security (%) 69 | 100 100 100 . 100 54 . . Level 1 6 | . . . . . 11 3 35 Level 2 19 | . . . . . 34 36 64 Level 3 4 | . . . . . . 59 . Level 4 . | . . . . . . . . Level 5 . | . . . . . . . . High Security . | . . . . . . . . Max Security . | . . . . . . . . Peak Influence 1067 | . 89 40 . 147 589 1067 520 Initial 520 | . . 10 . . 35 377 520 Average 180 | . 27 1 . 41 241 713 415 Influence Increases 3060 | . 435 50 . 375 1394 720 86 Destroy 0b10 Robot/C 1820 | . 240 40 . 240 880 380 40 Destroy 0b10 Robot/NC 90 | . 5 . . . 80 . 5 Destroy Leader 398 | . 72 10 . 40 234 30 12 Allied During Kill 35 | . . . . 35 . . . Trap Triggered on 0b10 10 | . . . . . . . 10 Successful Hack 100 | . 43 . . . 26 12 19 Disable Machine 75 | . . . . 15 60 . . Anti-Garrison Action 200 | . . . . . . 200 . Destroy Structure 167 | . . . . . 99 68 . Lose Combat Pursuer 165 | . 75 . . 45 15 30 . Influence Decreases 2822 | . 406 79 . 284 904 234 915 Entered New Map 826 | . . 19 . . 56 204 547 Time Decay 1566 | . 396 60 . 244 668 . 198 Lost Part 180 | . 10 . . . 120 30 20 Lost Ally 55 | . . . . 40 15 . . Purge Threat 195 | . . . . . 45 . 150 Squads Dispatched 18 | . 4 . . . 9 . 5 Investigation 11 | . 4 . . . 4 . 3 Extermination . | . . . . . . . . Reinforcement 7 | . . . . . 5 . 2 Assault . | . . . . . . . . Garrison . | . . . . . . . . Intercept . | . . . . . . . . Searches Triggered . | . . . . . . . . Construction Impeded . | . . . . . . . . Haulers Reinforced . | . . . . . . . . Active Scanning Responses . | . . . . . . . . Cargo Convoy Interrupts . | . . . . . . . . Stealth | -11 -10 -10 -10 -9 -8 -8 -8 --------- Run | Yrd Mat Min Exi Min Mat Gar Mat Distress Signals 10 | . 1 . . . 4 3 2 Communications Jammed . | . . . . . . . . Distress Signals . | . . . . . . . . Times Spotted 143 | . 24 2 . 11 71 21 14 Peak Tracking Total 10 | . 4 2 . 4 5 8 10 Tactical Retreats 7 | . 4 . . 1 1 1 . Traps | -11 -10 -10 -10 -9 -8 -8 -8 ------- Run | Yrd Mat Min Exi Min Mat Gar Mat Traps Triggered 7 | . 2 . . . 3 2 . Indirectly . | . . . . . . . . Trap Hack Attempts . | . . . . . . . . Triggered . | . . . . . . . . Disarmed . | . . . . . . . . Reprogrammed 6 | . . . . . . . 6 Reused 1 | . . . . . . . 1 Traps Extracted . | . . . . . . . . Installed . | . . . . . . . . Triggered 1 | . . . . . . . 1 Machines | -11 -10 -10 -10 -9 -8 -8 -8 ---------- Run | Yrd Mat Min Exi Min Mat Gar Mat Machines Disabled 9 | . . . . 1 4 4 . Max in Single Turn 2 | . . . . . 2 2 . Garrison Relay 2 | . . . . . . 2 . Phase Generator 1 | . . . . . . 1 . Machines Repaired . | . . . . . . . . Machines Dismantled . | . . . . . . . . Machines Sabotaged . | . . . . . . . . Overloaded Fab Kills . | . . . . . . . . Hacking | -11 -10 -10 -10 -9 -8 -8 -8 --------- Run | Yrd Mat Min Exi Min Mat Gar Mat Machines Accessed 34 | . 11 . 5 1 13 1 3 Terminals 20 | . 8 . . 1 8 1 2 Fabricators . | . . . . . . . . Repair Stations 3 | . 1 . . . 2 . . Recycling Units 2 | . 2 . . . . . . Scanalyzers 3 | . . . . . 2 . 1 Garrison Access 1 | . . . . . 1 . . Total Hacks 156 | . 43 . 50 1 44 2 16 Successful 111 | . 27 . 50 . 22 1 11 Failed 44 | . 16 . . 1 22 1 4 Catastrophic 6 | . 1 . . . 4 1 . Database Lockouts 1 | . . . . . . . 1 Manual 4 | . . . 3 . 1 . . Terminals 74 | . 32 . . 1 27 2 12 Fabricators . | . . . . . . . . Repair Stations 12 | . 3 . . . 9 . . Recycling Units 8 | . 8 . . . . . . Scanalyzers 10 | . . . . . 6 . 4 Garrison Access 2 | . . . . . 2 . . Terminal Hacks 89 | . 19 . 50 . 11 1 8 Record 64 | . 11 . 49 . 4 . . Prototype ID Bank 6 | . 2 . . . 2 . 2 Emergency Access Points 1 | . . . . . . 1 . Alert Level 2 | . 1 . . . 1 . . Unreport Threat 2 | . . . . . 1 . 1 Locate Traps 3 | . 1 . . . 1 . 1 Reprogram Traps 1 | . . . . . . . 1 Dispatch Records 1 | . 1 . . . . . . Maintenance Status 1 | . . . . . . . 1 Patrol Status 1 | . 1 . . . . . . Hauler Manifests 2 | . 1 . . . 1 . . Registered Components 1 | . . . . . 1 . . Registered Prototypes 1 | . . . . . . . 1 Zone Layout 2 | . 1 . . . . . 1 Proto ID Catalog 1 | . . . 1 . . . . Fabricator Hacks . | . . . . . . . . Repair Station Hacks 9 | . 2 . . . 7 . . Scan Component 5 | . 1 . . . 4 . . Repair 4 | . 1 . . . 3 . . Recycling Unit Hacks 6 | . 6 . . . . . . Recycle Component 1 | . 1 . . . . . . Process 1 | . 1 . . . . . . Report Inventory 2 | . 2 . . . . . . Retrieve Matter 1 | . 1 . . . . . . Retrieve Components 1 | . 1 . . . . . . Scanalyzer 5 | . . . . . 2 . 3 Insert Component 1 | . . . . . 1 . . Analyze 1 | . . . . . 1 . . Retrieve Study 3 | . . . . . . . 3 Garrison Access Hacks 2 | . . . . . 2 . . Unlock Access 1 | . . . . . 1 . . Coupler Status 1 | . . . . . 1 . . Unauthorized Hacks . | . . . . . . . . Terminals . | . . . . . . . . Fabricators . | . . . . . . . . Repair Stations . | . . . . . . . . Recycling Units . | . . . . . . . . Scanalyzers . | . . . . . . . . Garrison Access . | . . . . . . . . Data Cores Recovered . | . . . . . . . . Used . | . . . . . . . . Hacking Detections 25 | . 10 . . . 11 1 3 Full Trace Events 18 | . 7 . . . 7 1 3 Feedback Events 2 | . 1 . . . 1 . . Corruption 2 | . 1 . . . 1 . . Feedback Blocked . | . . . . . . . . Robot Schematics Acquired . | . . . . . . . . Robots Built . | . . . . . . . . Authchips . | . . . . . . . . Time . | . . . . . . . . Total Robot Build Rating . | . . . . . . . . Part Schematics Acquired 1 | . . . . . 1 . . Parts Built . | . . . . . . . . Authchips . | . . . . . . . . Time . | . . . . . . . . Total Part Build Rating . | . . . . . . . . Part Studies Acquired 2 | . . . . . . . 2 Parts Repaired 4 | . 1 . . . 3 . . Time 116 | . 26 . . . 90 . . Parts Recycled 1 | . 1 . . . . . . Recycled Matter 114 | . 114 . . . . . . Retrieved Matter 151 | . 151 . . . . . . Retrieved Components 10 | . 10 . . . . . . Parts Scanalyzed 1 | . . . . . 1 . . Part Schematics Acquired 1 | . . . . . 1 . . Parts Damaged . | . . . . . . . . Bothacking | -11 -10 -10 -10 -9 -8 -8 -8 ------------ Run | Yrd Mat Min Exi Min Mat Gar Mat Used RIF Installer 1 | . . . . . . 1 . Robots Hacked 5 | . . 3 . 1 . . 1 Non-combat 3 | . . 2 . . . . 1 Combat 2 | . . 1 . 1 . . . Robot Hacks Applied 5 | . . 3 . 1 . . 1 parse_system 5 | . . 3 . 1 . . 1 Relay Couplers Released 6 | . . . . . . 6 . Machine Destruction 6 | . . . . . . 6 . Fabnet Peak Effective % . | . . . . . . . . Robots Rewired . | . . . . . . . . Allies Hacked . | . . . . . . . . Hacks Repelled . | . . . . . . . . Allies | -11 -10 -10 -10 -9 -8 -8 -8 -------- Run | Yrd Mat Min Exi Min Mat Gar Mat Total Allies 6 | . . 5 . 1 . . . Largest Group 5 | . . 5 5 3 1 . . Highest-Rated Group 92 | . . 92 92 63 16 . . Highest-Rated Ally 31 | . . 31 31 31 16 . . Total Orders . | . . . . . . . . Ally Attacks 42 | . . . . 40 2 . . Total Damage 410 | . . . . 379 31 . . Kills 10 | . . . . 10 . . . Allies Corrupted . | . . . . . . . . Allies Melted . | . . . . . . . . Intel | -11 -10 -10 -10 -9 -8 -8 -8 ------- Run | Yrd Mat Min Exi Min Mat Gar Mat Active Infowar (turns) 1896 | . 1033 . . . 863 . . Terrain 551 | . 551 . . . . . . Seismic 1345 | . 482 . . . 863 . . Robot Analysis Total . | . . . . . . . . Derelict Logs Recovered 4 | . . 2 . 2 . . . Drone Launches 1 | . . . . . 1 . . Drone Recoveries 1 | . . . . . 1 . . Exploration | -11 -10 -10 -10 -9 -8 -8 -8 ------------- Run | Yrd Mat Min Exi Min Mat Gar Mat Turns Passed 10024 | 56 1633 1453 1367 1023 3417 671 404 Spaces Moved 5373 | 39 974 730 719 512 1815 288 296 Core 7 | 4 3 . . . . . . Treads 471 | . . . . . 283 188 . Legs 4739 | 35 971 730 719 512 1532 11 229 Wheels . | . . . . . . . . Hover . | . . . . . . . . Flight 156 | . . . . . . 89 67 Fastest Speed 50 | 50 120 190 190 190 120 106 106 Average Speed 158 | 112 141 190 190 190 138 175 119 Slowest Speed 500 | 120 500 190 190 190 250 269 260 Overloaded Moves . | . . . . . . . . Propulsion Burnouts . | . . . . . . . . Robots Hopped . | . . . . . . . . Potential Cave-ins . | . . . . . . . . Cave-ins Triggered . | . . . . . . . . Exploration Rate (%) 67 | 4 90 98 93 90 93 48 27 Regions Visited 7 Branch Regions 3 Pre-discovered Areas 1 | . . . 1 . . . . Known Exits Taken 2 | . . 1 . . 1 . . Unknown Exits Taken 4 | 1 1 . 1 1 . . . Scrap Searched 4 | . . 1 . 3 . . . Spaces Dug 2 | . . . . . 2 . . Terrain Destroyed 220 | . . . . . 134 85 1 Melee . | . . . . . . . . Projectile 6 | . . . . . 5 . 1 AOE 214 | . . . . . 129 85 . Terrain Rammed . | . . . . . . . . Walls Destroyed . | . . . . . . . . Machines Disabled . | . . . . . . . . Actions | -11 -10 -10 -10 -9 -8 -8 -8 --------- Run | Yrd Mat Min Exi Min Mat Gar Mat Total 6347 | 50 1147 784 721 546 2411 359 329 Wait 402 | . 76 34 . 7 278 4 3 Move 5366 | 38 973 729 718 511 1814 287 296 Hop . | . . . . . . . . Pick Up 83 | 7 16 2 2 5 44 3 4 Fast Attach 15 | 1 1 . . . 11 1 1 Attach 34 | 4 7 . . 1 13 5 4 Detach 2 | . 2 . . . . . . Swap 57 | . 12 1 . 3 34 3 4 Drop 61 | . 11 1 1 2 37 4 5 Fire 311 | . 48 8 . 15 180 48 12 Melee 11 | . . 9 . 2 . . . Ram . | . . . . . . . . Kick 1 | . 1 . . . . . . Crush . | . . . . . . . . Escape Stasis 4 | . . . . . . 4 . Rewire . | . . . . . . . . Trap . | . . . . . . . . Miscellaneous . | . . . . . . . . Route ------- -11/Scrapyard -10/Materials (discovered 6 exits: [*Mat x3] / [*Min x2] / [*Sub]) -10/Mines (discovered 3 exits: [*Mat x2] / *Exi) -10/Exiles (discovered 2 exits: *Min x2) -9/Mines (discovered 2 exits: *Mat x2) -8/Materials (discovered 5 exits: *Fac x3 / [*Sto] / Gar) -8/Garrison -8/Materials (discovered 1 exit: [*Sto]) History --------- Turn | Location | Event 6 | -11/Scrapyard | Discovered new exit (range 16) 57 | -11/Scrapyard | Entered Materials 58 | -10/Materials | Met a group of wandering Federalists 272 | -10/Materials | Discovered new exit (range 14) 277 | -10/Materials | Discovered new exit (range 10) 336 | -10/Materials | Build established: Mutant 652 | -10/Materials | Discovered new exit (range 10) 867 | -10/Materials | Discovered new exit (range 9) 1072 | -10/Materials | Discovered new exit (range 16) 1100 | -10/Materials | Repaired Aluminum Leg 1130 | -10/Materials | Discovered new exit (range 15) 1409 | -10/Materials | Build established: Scavenger-Mutant 1690 | -10/Materials | Entered Mines 1832 | -10/Mines | Discovered new exit (range 11) 1891 | -10/Mines | Learned 2 Materials zone layouts 2011 | -10/Mines | Identified exit to Exiles 2034 | -10/Mines | Assisted by bots powering up and referring to "LRC-V3" 2123 | -10/Mines | Discovered new exit (range 16) 2950 | -10/Mines | Deemed a non-threat by the Exiles lab entrance 3143 | -10/Mines | Entered Exiles 3143 | -10/Exiles | Accompanied by 5 allies 3172 | -10/Exiles | Discovered new exit (range 14) 3173 | -10/Exiles | Led the pair of lost Derelicts to a safe place 3242 | -10/Exiles | Met 8R-AWN 3271 | -10/Exiles | Met EX-HEX 3339 | -10/Exiles | Met EX-DEC 3395 | -10/Exiles | Visited The Gauntlet 3510 | -10/Exiles | Learned location of Zion (-7) 3586 | -10/Exiles | Discovered new exit (range 14) 3721 | -10/Exiles | Met EX-BIN 3789 | -10/Exiles | Aligned with FarCom system 3791 | -10/Exiles | Given EX-Vault access code 4012 | -10/Exiles | Opened EX-Vault 4027 | -10/Exiles | Found Flying Fortress v7 4042 | -10/Exiles | Found Supersonic Drone Bay 4085 | -10/Exiles | Warned to stay clear of 0b10 Research branches 4510 | -10/Exiles | Left Exiles lab with Supersonic Drone Bay 4510 | -10/Exiles | Entered Mines 4510 | -9/Mines | Accompanied by 3 allies 4962 | -9/Mines | Discovered new exit (range 3) 4965 | -9/Mines | Received a Mining Laser from a helpful Derelict 5240 | -9/Mines | Learned Materials garrison access intel 5453 | -9/Mines | Discovered new exit (range 8) 5533 | -9/Mines | Entered Materials 5533 | -8/Materials | Accompanied by 1 ally 5533 | -8/Materials | Evolved 4 slots: Propulsion x2, Utility x2 5534 | -8/Materials | Identified exit to Factory 5535 | -8/Materials | Loaded intel: 1 garrison access location 5991 | -8/Materials | Discovered new exit (range 5) 6255 | -8/Materials | Repaired Aluminum Leg 6338 | -8/Materials | Repaired Seismic Detector 6392 | -8/Materials | Repaired Minigun 7645 | -8/Materials | Lost 3 parts (1p1n1u) 7791 | -8/Materials | Lost 3 parts (1p1u1w) 7895 | -8/Materials | Core integrity fell below 50% 7932 | -8/Materials | Discovered exit to Factory (range 14) 7980 | -8/Materials | Identified exit to Garrison 8677 | -8/Materials | Discovered exit to Factory (range 15) 8950 | -8/Materials | Entered Garrison 9002 | -8/Garrison | Triggered checkpoint 9071 | -8/Garrison | Garrison Relay disabled 9184 | -8/Garrison | Triggered checkpoint 9184 | -8/Garrison | Triggered checkpoint 9198 | -8/Garrison | Core integrity fell below 20% 9304 | -8/Garrison | Installed Relay Interface Framework 9379 | -8/Garrison | Garrison Relay disabled 9611 | -8/Garrison | Phase Generator disabled 9611 | -8/Garrison | Discovered new exit (range 5) 9621 | -8/Garrison | Entered Materials 9644 | -8/Materials | Central database locked down 9679 | -8/Materials | Discovered new exit (range 15) 9680 | -8/Materials | Met 7R-MNS 10025 | -8/Materials | Destroyed by G-47 Trooper with Particle Gun Last Messages --------------- Retrieving prototype inventory records... Found 1 registered prototype stockpile: TLGDC26EBL: Enh. Autogun Downloaded coordinate data. >>Alert(Purge) Purged threat record, alert level lowered. >>Traps(Locate) Found 12 traps in 2 arrays: 6x Explosive Trap 6x Alarm Trap Map updated. Slug penetrates G-47 Trooper. G-47 Trooper destroyed. Slug penetrates G-47 Trooper. Lgt. Nuclear Core destroyed. K-01 Serf collects debris. Hacking Suite destroyed. R-06 Scavenger collects Aluminum Leg. [Achievement: First Step to Greatness] [Achievement: 5k Club] Map ----- +----------------------------------------------------+ | ?????????????????????????????????????????????????? | | ?????????????????????????????????????????????????? | | ?????????????????????????????????????????????????? | | ?????????????????????????????????????????????????? | | ?????????????????????????????????????????????????? | | ?????????????????????????????????????????????????? | | ?????????????????????????????????????????????????? | | ?????????????????????????????????????????????????? | | ?????????????????????????????????????????????????? | | ?????????????????????????????????????????????????? | | ?????????????????????????????????????????????????? | | ?????????????????????????????????????????????????? | | ???????????????????????Y?????????????????????????? | | ?????????????????????????????????????????????????? | | ???????????????????????# """"" #????# """ """ #?? | | ???????????????????????# """ #????# R" #?? | | ???????????????????????# #????# """ #?? | | ???????????????????????# # ???# #?? | | ?????????###################+###################?? | | ???????? ^ ^ w ?? | | ???????? g g ^ ? | | ???????? [ggrk^ ? | | ???????????????############ g!g% ###?? | | ????????????????# # w^ ! ^m T#??? | | ????????????????# ]] ! # g /! ##??? | | ????????????????# ]] @/ // #???? | | ????????????????# # / ! #???? | | ????????????????# """ """ # a #???? | | ????????????????# """ """ # [ #???? | | ????????????????# """ """ ##"T"#T# %##### #???? | | ????????????????? ##"""### #???# #???? | | ????????????????################?#% #???# #???? | | ?????????????????????????????????# #???#^^^#???? | | ?????????????????????????????????# #???#^^^#???? | | ?????????????????????????????????# #???# #???? | | ?????????????????????????????????# #???# ###?? | | ?????????????????????????????????# ####### # ?? | | ?????##########??????????????????# #?## + ?? | | ?????# ###########????????# #?# # ?? | | ?????# # #????????# #?# ###?? | | ?????# # #????????# #?# # ?? | | ?????# # #????????# #?# # ?? | | ?????# # #????????# #?## # ?? | | ?????# # #????????# #?##### # ?? | | ?????# # #????????# #?????# + ?? | | ?????# # #????????# #?????????????? | | ?????# # #????????# #?????????????? | | ?????#####+######+################ #?????????????? | | ??????# #?????????????? | | ??????# #?????????????? | +----------------------------------------------------+ Best States ------------- Heat Dissipation 31 Energy Generation 14 Energy Capacity 275 Matter Stores 300 Matter Capacity 300 Sight Range 16 Terrain Scan Range 14 Terrain Scan Density 85 Armor Coverage 225 Evasion (%) 55 Targeting Accuracy 14 Recoil Reduction 2 Offensive Hacking 10 Item Schematics ----------------- Adv. Beam Rifle | -8/Materials | Scanalyzed Robot Schematics ------------------ None Fabricated ------------ Nothing Repaired ---------- Aluminum Leg | 80% | -10/Materials Aluminum Leg | 75% | -8/Materials Seismic Detector | 30% | -8/Materials Minigun | 45% | -8/Materials Studied --------- Flight Unit | -8/Materials | Hacked Mni. Grenade Launcher | -8/Materials | Hacked Alien Tech Used ----------------- None Achievements -------------- 5k Club Crack Shot DATA ERROR: Steam Global Achievement% Everything Is Under Control First Step to Greatness For Emergencies Only Heavy Suspicion I Have A Map? It's Just You Item+ Join The Dark Side Junior Dev Librarian Loot Pinata Novice Programmer One Hack Too Far Organ Harvest Part-time Mechanic Please Form A Line Remodeling Risk Taker Safety First Shopping List Sixth Sense Storm Trooper The More The Merrier There's More Where That Came From Tourist Uninvited Guest Challenges ------------ None Game ------ Seed AutogunCobblerTracker Manual? 0 Play Time 02:39:49 Cumulative 7.8 hours Start 2026.03.06 @ 00:18:44 End 2026.03.06 @ 03:02:13 Sessions 1 Manual Loads 0 Difficulty Rogue Special Mode None Game No. 7 Rogue 7 Adventurer 0 Explorer 0 Win Type - Total 0 Types 0/0/0/0/0/0/0/0/0/0 Lore% 8 Gallery% 9 Achievement% 6 Wizard Run 0 Options --------- Layout 1 ASCII 0 Keyboard 0 Movement Mouse Keybinds 0 Fullscreen 1 Font 24/Smallcaps Map View 50x35 Zoom Use 0% Tactical HUD 0 Map Filters NONE Filters NONE Steam 1 RUN: 07cb63d0-0c05-4b0d-8615-f23d2375f57a